bitfinex/quotes_SOLUSD_20220128
["timestamp","ask_amount","ask_price","bid_price","bid_amount"]
[1643343447893,24.0499,92.134,92.061,22.76733796]
[1643343448793,41.28843611,92.123,92.061,22.76733796]
[1643343448995,6.0,92.113,92.061,22.76733796]
[1643343449393,14.57175061,92.109,92.061,22.76733796]
[1643343449594,6.0,92.099,92.061,22.76733796]
[1643343449794,0.25,92.098,92.061,22.76733796]
[1643343451198,0.25,92.119,92.062,24.8884]
[1643343451398,0.25,92.129,92.062,24.8884]
[1643343451894,40.29759822,92.138,92.062,24.8884]
[1643343454197,0.25,92.137,92.062,24.8884]
[1643343455002,6.0,92.128,92.062,24.8884]
[1643343455199,0.25,92.137,92.062,24.8884]
[1643343457905,40.29759822,92.138,92.062,24.8884]
[1643343458305,40.29759822,92.138,92.063,2.10589535]
[1643343458507,40.29759822,92.138,92.073,6.0]
[1643343458705,23.9282,92.153,92.08,15.57]
[1643343458907,23.9282,92.153,92.081,22.7558]
[1643343459306,2.98959704,92.167,92.082,2.10589535]
[1643343459506,16.2931,92.18,92.082,2.10589535]
[1643343459507,3.01441123,92.172,92.082,2.10589535]
[1643343459706,23.8754,92.185,92.1,194.6]
[1643343459707,3.01441123,92.179,92.1,194.6]
[1643343460008,3.01441123,92.184,92.11,15.57]
[1643343460406,2.98959704,92.189,92.11,15.57]
[1643343460608,2.98959704,92.191,92.11,15.57]
[1643343460906,42.69226347,92.19,92.111,24.87323331]
[1643343461108,39.67785224,92.19,92.111,22.76733796]
[1643343461306,39.67785224,92.19,92.112,24.9118]
[1643343461907,39.67785224,92.19,92.122,6.0]
[1643343462108,39.67785224,92.19,92.13,15.57]
[1643343462307,39.67785224,92.19,92.131,38.48555606]
[1643343463109,0.25,92.189,92.131,38.48555606]
[1643343464916,6.0,92.18,92.131,38.48555606]
[1643343465512,0.25,92.179,92.131,38.48555606]
[1643343466714,0.25,92.189,92.131,38.48555606]
[1643343466913,55.96985224,92.19,92.131,38.48555606]
[1643343467113,23.4667,92.196,92.132,0.25]
[1643343467313,16.2876,92.21,92.132,0.25]
[1643343467512,39.4523,92.232,92.132,25.32489535]
[1643343467513,2.98959704,92.226,92.132,25.32489535]
[1643343467713,2.98959704,92.228,92.132,25.32489535]
[1643343467913,2.98959704,92.229,92.14,194.6]
[1643343468116,48.99443112,92.217,92.15,15.57]
[1643343468317,0.25,92.216,92.151,24.83425722]
[1643343469115,48.99443112,92.217,92.151,24.83425722]
[1643343469819,48.99443112,92.217,92.15,15.57]
[1643343470017,6.0,92.207,92.15,15.57]
[1643343470618,108.2,92.205,92.101,23.7705]
[1643343470816,6.8657556,92.202,92.102,42.82865121]
[1643343471218,6.0,92.192,92.1,15.57]
[1643343471421,2.98959704,92.186,92.04,194.6]
[1643343471619,2.98959704,92.177,92.05,15.57]
[1643343471817,2.98959704,92.174,92.05,15.57]
[1643343472020,6.0,92.164,92.05,15.57]
[1643343472223,33.42443113,92.162,92.051,44.18044104]
[1643343472719,108.2,92.151,92.051,44.18044104]
[1643343472920,24.4848,92.15,92.05,15.57]
[1643343473118,46.31375954,92.15,92.05,15.57]
[1643343473418,6.0,92.14,92.05,15.57]
[1643343473718,108.2,92.138,92.05,15.57]
[1643343473918,6.8657556,92.137,92.051,41.13905932]
[1643343474120,10.07244702,92.137,92.051,41.13905932]
[1643343474317,16.306,92.12,92.051,41.13905932]
[1643343474518,33.42443113,92.119,92.06,15.57]
[1643343474718,33.67443113,92.119,92.06,15.57]
[1643343476117,6.0,92.109,92.06,15.57]
[1643343476319,0.25,92.108,92.06,15.57]
[1643343477222,33.42443113,92.119,92.06,15.57]
[1643343477720,0.25,92.118,92.06,15.57]
[1643343477918,33.42443113,92.119,92.06,15.57]
[1643343478119,33.42443113,92.119,92.061,0.25]
[1643343478319,33.42443113,92.119,92.06,15.57]
[1643343478519,6.0,92.109,92.06,15.57]
[1643343479122,33.42443113,92.119,92.06,15.57]
[1643343479324,0.25,92.118,92.06,15.57]
[1643343479822,0.25,92.138,92.061,26.14699535]
[1643343480020,2.98959704,92.173,92.061,26.14699535]
[1643343480222,2.98959704,92.177,92.062,2.10589535]
[1643343480422,6.0,92.167,92.062,2.10589535]
[1643343480623,39.31817627,92.166,92.063,0.25]
[1643343480824,39.31817627,92.166,92.073,39.61733024]
[1643343481023,39.31817627,92.166,92.08,15.57]
[1643343481546,6.0,92.16,92.08,15.57]
[1643343481728,6.0,92.156,92.08,15.57]
[1643343481927,2.95669142,92.159,92.08,15.57]
[1643343482124,6.0,92.16,92.08,15.57]
[1643343482326,6.97201046,92.148,92.08,15.57]
[1643343482725,0.25,92.147,92.08,15.57]
[1643343484129,6.0,92.138,92.08,15.57]
[1643343484328,0.25,92.137,92.08,15.57]
[1643343485129,6.25,92.137,92.08,15.57]
[1643343488035,0.25,92.137,92.081,0.25]
[1643343488234,6.97201046,92.148,92.081,0.25]
[1643343488434,0.25,92.147,92.081,0.25]
[1643343489458,6.97201046,92.148,92.081,0.25]
[1643343489661,0.25,92.147,92.082,2.10589535]
[1643343489956,0.25,92.147,92.083,0.25]
[1643343490158,16.2926,92.18,92.082,2.10589535]
[1643343490358,16.2926,92.18,92.083,24.3965]
[1643343490558,6.0,92.17,92.093,6.0]
[1643343490859,6.0,92.179,92.1,15.57]
[1643343491057,2.95669142,92.169,92.1,15.57]
[1643343491256,2.95669142,92.169,92.091,36.30287487]
[1643343491459,6.0,92.159,92.083,24.1465]
[1643343491656,23.9559,92.158,92.083,24.1465]
[1643343491858,27.16259142,92.158,92.07,15.57]
[1643343492157,16.2989,92.15,92.07,15.57]
[1643343492361,16.2989,92.15,92.071,38.13929679]
[1643343492362,10.03236142,92.149,92.071,38.13929679]
[1643343493057,2.95669142,92.148,92.071,38.13929679]
[1643343493259,23.7715,92.147,92.072,24.3213]
[1643343493964,16.3007,92.14,92.072,24.3213]
[1643343494159,16.3007,92.14,92.07,15.57]
[1643343494359,3.20669142,92.139,92.07,15.57]
[1643343494758,2.95669142,92.138,92.07,15.57]
[1643343495158,0.25,92.137,92.07,15.57]
[1643343495361,30.50782531,92.127,92.07,15.57]
[1643343495560,6.0,92.117,92.07,15.57]
[1643343495759,0.25,92.116,92.07,15.57]
[1643343496360,0.25,92.116,92.066,38.36480896]
[1643343496860,0.25,92.116,92.07,15.57]
[1643343499767,0.25,92.116,91.983,16.4021]
[1643343499971,0.30543673,92.113,92.0,15.57]
[1643343500167,3.29503377,92.113,91.99,15.57]
[1643343500373,6.0,92.105,91.98,15.57]
[1643343500679,2.98959704,92.082,91.971,36.21407854]
[1643343500868,0.25,92.081,91.98,15.57]
[1643343501069,6.0,92.072,91.98,15.57]
[1643343501269,0.25,92.071,91.98,15.57]
[1643343501469,6.0,92.069,91.98,15.57]
[1643343501873,6.0,92.06,91.98,15.57]
[1643343502070,6.0,92.06,91.981,0.25]
[1643343502472,6.0,92.06,91.98,15.57]
[1643343502771,2.95669142,92.059,91.98,15.57]
[1643343503380,2.95669142,92.077,91.98,15.57]
[1643343503770,16.3085,92.1,91.99,6.0]
[1643343503971,16.3085,92.1,92.0,15.57]
[1643343504370,23.7103,92.108,91.99,6.0]
[1643343504371,20.62505945,92.099,92.001,43.98030675]
[1643343504774,1.50325504,92.088,92.001,43.98030675]
[1643343504976,1.50325504,92.087,92.001,43.98030675]
[1643343505172,0.25,92.087,92.001,43.98030675]
[1643343505374,4.09512727,92.076,92.001,43.98030675]
[1643343505573,6.0,92.066,92.001,43.98030675]
[1643343505778,0.25,92.065,92.001,43.98030675]
[1643343506175,6.0,92.066,92.001,43.98030675]
[1643343507576,16.3139,92.07,92.001,43.98030675]
[1643343508174,0.25,92.069,92.001,43.98030675]
[1643343508580,0.25,92.069,91.98,15.57]
[1643343508776,0.25,92.069,91.888,4.47623821]
[1643343508777,16.316,92.06,91.95,15.57]
[1643343508978,22.6247,92.059,91.94,15.57]
[1643343509179,25.83139142,92.059,91.941,23.8623]
[1643343509577,21.24571269,92.058,91.942,35.30690263]
[1643343509777,16.32,92.03,91.943,0.25]
[1643343509975,24.9803,92.049,91.943,0.25]
[1643343510185,0.25,92.029,91.944,2.10848948]
[1643343510381,0.25,92.029,91.945,0.25]
[1643343510777,0.25,92.029,91.945,2.35848948]
[1643343510976,0.25,92.029,91.945,0.25]
[1643343511377,0.25,92.047,91.945,0.25]
[1643343511576,0.25,92.047,91.943,0.25]
[1643343513679,0.25,92.047,91.944,2.10298135]
[1643343513877,0.25,92.047,91.945,0.25]
[1643343514278,16.3194,92.04,91.945,0.25]
[1643343514579,6.0,92.03,91.945,0.25]
[1643343514778,22.8899,92.029,91.945,0.25]
[1643343514979,22.6399,92.029,91.945,0.25]
[1643343515383,22.6399,92.029,91.943,0.25]
[1643343515980,22.6399,92.029,91.942,35.30690263]
[1643343516387,0.25,92.028,91.942,35.30690263]
[1643343517583,22.6399,92.029,91.942,35.30690263]
[1643343517783,22.6399,92.029,91.943,0.25]
[1643343517986,22.6399,92.029,91.942,35.30690263]
[1643343520185,0.25,92.028,91.942,35.30690263]
[1643343522690,18.28902127,92.018,91.942,35.30690263]
[1643343522909,0.25,92.028,91.943,2.10298135]
[1643343523108,0.25,92.028,91.944,23.3251]
[1643343524009,24.30947933,92.036,91.945,0.25]
[1643343524509,24.30947933,92.036,91.946,2.10298135]
[1643343524709,16.315,92.06,91.96,15.57]
[1643343524908,24.2537,92.068,91.961,24.6565]
[1643343525110,24.2537,92.068,91.961,27.00948135]
[1643343525309,6.0,92.058,91.962,2.10298135]
[1643343525710,22.73566781,92.057,91.963,42.05048222]
[1643343525913,1.50325504,92.076,91.963,42.05048222]
[1643343526110,1.50325504,92.085,91.973,6.0]
[1643343526309,1.50325504,92.085,91.98,15.57]
[1643343526510,1.50325504,92.085,91.981,23.8991]
[1643343526912,1.50325504,92.08,91.991,6.0]
[1643343527212,6.0,92.07,91.99,15.57]
[1643343527413,7.2505894,92.069,91.99,15.57]
[1643343528115,24.4546,92.068,91.99,15.57]
[1643343528814,7.0005894,92.069,91.99,15.57]
[1643343529013,7.0005894,92.069,92.001,40.63512144]
[1643343529216,1.50325504,92.067,92.001,40.63512144]
[1643343529616,1.75325504,92.066,92.001,40.63512144]
[1643343530418,24.48215504,92.065,92.001,40.63512144]
[1643343530621,1.50325504,92.061,92.001,40.63512144]
[1643343530816,0.25,92.06,92.001,40.63512144]
[1643343531718,0.25,92.06,92.0,15.57]
[1643343532117,1.75325504,92.061,92.0,15.57]
[1643343532718,17.71959732,92.054,92.001,35.33905408]
[1643343533116,0.25,92.053,92.001,35.33905408]
[1643343534121,0.25,92.053,91.981,23.8991]
[1643343534319,0.25,92.053,91.99,15.57]
[1643343535019,0.25,92.053,91.991,42.40903109]
[1643343537024,6.0,92.044,91.99,15.57]
[1643343537221,6.0,92.044,91.92,16.3147]
[1643343537222,6.0,92.044,91.95,17.07337637]
[1643343537422,1.50325504,92.034,91.95,15.57]
[1643343537623,1.50325504,92.026,91.95,15.57]
[1643343537824,1.75325504,92.025,91.95,15.57]
[1643343538021,11.46053586,92.025,91.951,37.41233934]
[1643343538223,0.25,92.024,91.951,37.41233934]
[1643343538625,0.25,92.024,91.952,0.25]
[1643343539025,0.25,92.024,91.832,4.88]
[1643343539228,1.50325504,92.014,91.9,15.57]
[1643343539423,1.50325504,92.014,91.89,14.57]
[1643343539424,16.3273,91.99,91.89,14.57]
[1643343539622,16.3273,91.99,91.889,2.97305091]
[1643343539623,47.6397,91.989,91.889,2.97305091]
[1643343539824,47.6397,91.989,91.88,15.57]
[1643343539825,47.8897,91.989,91.88,15.57]
[1643343540024,17.71959732,91.988,91.881,43.48296797]
[1643343540324,0.25,91.987,91.881,43.48296797]
[1643343540527,16.3287,91.98,91.881,43.48296797]
[1643343540722,6.0,91.978,91.881,43.48296797]
[1643343540922,22.9978,91.977,91.881,43.48296797]
[1643343541122,23.2478,91.977,91.881,43.48296797]
[1643343541524,21.48868176,91.976,91.881,43.48296797]
[1643343541924,111.40669142,91.975,91.881,43.48296797]
[1643343542128,7.0005894,91.974,91.881,43.48296797]
[1643343542323,16.3313,91.97,91.881,43.48296797]
[1643343542724,0.25,91.969,91.881,43.48296797]
[1643343543730,16.3313,91.97,91.881,43.48296797]
[1643343545131,0.25,91.969,91.881,43.48296797]
[1643343546533,6.0,91.96,91.881,43.48296797]
[1643343546731,17.71959732,91.959,91.881,43.48296797]
[1643343546931,17.96959732,91.959,91.881,43.48296797]
[1643343547632,0.25,91.959,91.882,2.09726981]
[1643343547832,0.25,91.959,91.882,2.34726981]
[1643343548031,24.2674,91.989,91.882,2.34726981]
[1643343548236,24.2674,91.989,91.883,2.09729215]
[1643343548436,24.2290799,91.988,91.883,2.09729215]
[1643343548632,24.2290799,91.988,91.884,0.25]
[1643343549033,24.2290799,91.988,91.885,2.09729215]
[1643343549233,24.6728,92.008,91.9,15.57]
[1643343549637,18.53199034,92.007,91.901,2.34729215]
[1643343549834,6.0,91.998,91.901,2.34729215]
[1643343550036,6.0,91.998,91.901,0.25]
[1643343550236,18.75817747,91.997,91.902,35.76484884]
[1643343550434,6.0,91.998,91.902,37.86214099]
[1643343550637,6.0,91.998,91.903,0.25]
[1643343551036,18.53199034,92.007,91.903,2.34729215]
[1643343551236,18.53199034,92.007,91.904,2.09729215]
[1643343551643,23.25580779,92.023,91.905,0.25]
[1643343551837,1.46437893,92.008,91.92,15.57]
[1643343552040,1.46437893,92.008,91.921,48.03632272]
[1643343552238,0.25,92.007,91.921,48.28632272]
[1643343552437,0.25,92.007,91.921,48.03632272]
[1643343552638,18.53199034,92.006,91.921,48.03632272]
[1643343552838,0.25,92.005,91.921,48.03632272]
[1643343553238,18.53199034,92.004,91.921,48.03632272]
[1643343553439,16.3256,92.0,91.921,48.03632272]
[1643343553838,0.25,91.999,91.921,48.03632272]
[1643343554640,6.0,91.994,91.921,48.03632272]
[1643343554840,0.25,91.993,91.921,48.03632272]
[1643343555041,0.25,91.993,91.922,2.09729215]
[1643343555241,0.25,91.993,91.922,2.34729215]
[1643343556254,0.25,92.003,91.922,2.34729215]
[1643343556847,0.25,92.003,91.922,2.09729215]
[1643343557245,0.25,92.003,91.921,48.03632272]
[1643343558246,6.0,91.994,91.921,48.03632272]
[1643343558448,108.2,91.993,91.921,48.03632272]
[1643343558647,129.93868176,91.993,91.87,15.57]
[1643343558846,18.53199034,91.992,91.87,15.57]
[1643343559047,21.48868176,91.992,91.87,31.968]
[1643343559247,0.25,91.991,91.871,2.34729215]
[1643343559451,0.25,91.991,91.871,50.42169215]
[1643343559647,6.47809756,91.991,91.872,55.33146455]
[1643343559847,6.47809756,91.991,91.873,0.25]
[1643343560047,6.22809756,91.991,91.873,2.34729215]
[1643343560248,18.53199034,92.011,91.89,16.3214]
[1643343560455,18.53199034,92.011,91.9,15.57]
[1643343560647,24.0347,92.028,91.9,216.17]
[1643343560850,24.0347,92.028,91.901,0.25]
[1643343561050,24.0347,92.028,91.901,27.91673724]
[1643343561248,43.30726937,92.016,91.91,6.0]
[1643343561547,6.0,92.006,91.921,42.05210306]
[1643343561947,24.7439,92.016,91.921,42.05210306]
[1643343562150,18.53199034,92.038,91.922,0.25]
[1643343562348,16.323,92.02,91.921,42.05210306]
[1643343562548,23.9309,92.019,91.921,42.05210306]
[1643343563155,40.05622959,92.018,91.921,42.05210306]
[1643343563351,21.52423925,92.018,91.922,0.25]
[1643343563648,21.52423925,92.018,91.923,19.56944509]
[1643343563848,42.62739034,92.037,91.924,0.25]
[1643343564078,42.62739034,92.037,91.924,26.29589215]
[1643343564278,0.25,92.036,91.925,2.09729215]
[1643343564475,42.62739034,92.037,91.925,2.09729215]
[1643343564677,42.62739034,92.037,91.926,0.25]
[1643343564875,20.15504924,92.036,91.94,15.57]
[1643343565075,20.15504924,92.036,91.941,48.27429593]
[1643343565277,23.907,92.053,91.941,48.27429593]
[1643343565278,23.907,92.053,91.941,48.52429593]
[1643343565475,23.907,92.053,91.951,6.0]
[1643343565678,23.907,92.053,91.96,15.57]
[1643343565876,0.25,92.052,91.961,0.25]
[1643343566374,23.51475606,92.052,91.962,2.0928091]
[1643343566776,23.51475606,92.052,91.963,0.25]
[1643343567975,23.51475606,92.052,91.962,0.25]
[1643343569978,23.51475606,92.052,91.963,2.0928091]
[1643343570978,6.0,92.042,91.961,45.09777245]
[1643343571179,108.2,92.041,91.961,45.09777245]
[1643343571379,3.01347757,92.04,91.961,45.09777245]
[1643343571577,21.54546791,92.04,91.961,45.09777245]
[1643343571776,1.45543066,92.038,91.961,45.09777245]
[1643343572281,16.3212,92.03,91.961,45.09777245]
[1643343572478,25.2712,92.03,91.93,15.57]
[1643343572682,108.2,92.028,91.93,15.57]
[1643343572882,0.25,92.027,91.93,15.57]
[1643343573079,21.73868176,92.027,91.93,15.57]
[1643343573279,21.48868176,92.026,91.93,15.57]
[1643343573479,16.3234,92.02,91.931,42.40921135]
[1643343573679,21.36704515,92.019,91.931,42.40921135]
[1643343573879,21.61704515,92.019,91.931,42.40921135]
[1643343574280,21.48868176,92.018,91.931,42.40921135]
[1643343574680,21.73868176,92.017,91.931,42.40921135]
[1643343575081,2.95669142,92.016,91.931,42.40921135]
[1643343575282,16.3258,92.0,91.931,42.40921135]
[1643343575580,3.35314157,91.999,91.931,42.40921135]
[1643343575785,3.60314157,91.999,91.931,42.40921135]
[1643343580093,3.35314157,91.999,91.931,42.40921135]
[1643343581595,19.56734157,91.999,91.931,42.40921135]
[1643343581795,0.25,91.998,91.931,42.40921135]
[1643343584392,0.25,91.998,91.93,15.57]
[1643343584693,6.0,91.989,91.9,15.57]
[1643343584893,0.25,91.988,91.89,15.57]
[1643343585096,0.25,91.988,91.9,6.0]
[1643343585492,0.25,91.988,91.901,42.23691376]
[1643343586097,16.3303,91.98,91.901,42.23691376]
[1643343586294,21.61704515,91.979,91.901,42.23691376]
[1643343586493,24.2686,91.978,91.911,6.0]
[1643343586903,0.25,91.977,91.911,6.0]
[1643343587305,0.25,91.977,91.901,42.23691376]
[1643343588704,6.0,91.968,91.901,42.23691376]
[1643343588907,0.25,91.967,91.901,42.23691376]
[1643343592327,16.332,91.97,91.901,42.23691376]
[1643343592931,24.2686,91.978,91.901,42.23691376]
[1643343593732,0.25,91.977,91.901,42.23691376]
[1643343594534,6.0,91.968,91.901,42.23691376]
[1643343594933,5.25,91.968,91.901,42.23691376]
[1643343595132,16.3258,92.01,91.902,2.09280159]
[1643343595334,23.3245,91.998,91.902,2.34280159]
[1643343595732,23.3245,91.998,91.903,2.09280159]
[1643343595934,22.7349,92.013,91.903,22.06539112]
[1643343596132,22.7349,92.013,91.913,6.0]
[1643343596332,22.7349,92.013,91.92,15.57]
[1643343596732,22.7349,92.013,91.921,0.25]
[1643343596932,18.53199034,92.028,91.93,6.0]
[1643343597144,18.53199034,92.028,91.94,15.57]
[1643343597333,20.35407122,92.036,91.941,42.08798559]
[1643343597532,23.5526,92.041,91.941,42.08798559]
[1643343597733,23.5526,92.041,91.941,44.18078718]
[1643343597935,23.5526,92.041,91.942,2.09280159]
[1643343598134,0.25,92.04,91.942,2.09280159]
[1643343598331,0.25,92.04,91.943,0.25]
[1643343598736,18.78199034,92.04,91.943,0.25]
[1643343599333,18.78199034,92.04,91.942,0.25]
[1643343599532,6.0,92.03,91.951,6.0]
[1643343599735,24.1514,92.029,91.951,6.0]
[1643343599933,24.4014,92.029,91.951,6.0]
[1643343600737,3.61552543,92.028,91.951,6.0]
[1643343601134,0.25,92.027,91.951,6.0]
[1643343601535,0.25,92.027,91.95,15.57]
[1643343602534,18.53199034,92.04,91.951,2.09280159]
[1643343602735,2.98959704,92.05,91.951,22.31539112]
[1643343602937,2.98959704,92.069,91.962,108.2]
[1643343603137,2.98959704,92.086,91.972,6.0]
[1643343603340,2.98959704,92.09,91.973,0.25]
[1643343603538,18.53199034,92.096,91.973,0.25]
[1643343603539,6.0,92.08,91.98,6.0]
[1643343603738,6.0,92.08,91.99,15.57]
[1643343603937,6.0,92.08,91.991,45.10969549]
[1643343604339,18.78199034,92.079,91.991,45.10969549]
[1643343604538,3.0142741,92.078,91.991,45.10969549]
[1643343604742,21.54626444,92.078,91.991,45.10969549]
[1643343604938,2.98959704,92.074,91.99,15.57]
[1643343605138,16.3142,92.07,91.99,15.57]
[1643343605539,18.78199034,92.069,91.99,15.57]
[1643343605942,6.71799166,92.068,91.991,45.80270731]
[1643343606141,25.249982,92.068,91.991,45.80270731]
[1643343606342,18.78199034,92.067,91.991,45.80270731]
[1643343606542,108.2,92.066,91.991,45.80270731]
[1643343606944,6.71799166,92.068,91.991,45.80270731]
[1643343607141,6.71799166,92.068,91.992,2.09280159]
[1643343607343,6.71799166,92.068,91.992,0.25]
[1643343608344,0.25,92.067,91.992,0.25]
[1643343608945,23.8981,92.073,91.992,0.25]
[1643343609743,23.8981,92.073,91.991,45.80270731]
[1643343609945,20.91511956,92.072,91.991,45.80270731]
[1643343610545,6.0,92.062,91.991,45.80270731]
[1643343610946,0.25,92.061,91.991,45.80270731]
[1643343611350,0.25,92.071,91.991,45.80270731]
[1643343612548,0.25,92.071,92.001,6.0]
[1643343613355,0.25,92.071,92.0,15.57]
[1643343614651,20.91511956,92.072,92.0,15.57]
[1643343615551,20.91511956,92.072,92.011,39.40334168]
[1643343616152,0.25,92.071,92.011,39.40334168]
[1643343616753,0.25,92.071,92.012,0.25]
[1643343618254,0.25,92.072,92.011,39.40334168]
[1643343619056,22.56502632,92.072,92.011,39.40334168]
[1643343621657,24.2793,92.093,92.011,39.40334168]
[1643343621856,117.2028,92.119,92.011,39.40334168]
[1643343621857,2.98959704,92.113,92.012,2.34953788]
[1643343622055,23.696,92.118,92.022,6.0]
[1643343622257,23.696,92.118,92.03,15.57]
[1643343622456,6.0,92.108,92.031,108.2]
[1643343622655,23.696,92.118,92.031,108.2]
[1643343622656,23.47172366,92.107,92.032,46.21875238]
[1643343622866,23.696,92.118,92.033,108.45]
[1643343623056,23.696,92.118,92.033,110.54953788]
[1643343623858,2.98959704,92.14,92.034,2.09953788]
[1643343624079,2.98959704,92.159,92.05,194.6]
[1643343624259,2.98959704,92.17,92.06,15.57]
[1643343624458,70.0,92.158,92.03,9.91]
[1643343624661,70.0,92.158,91.979,2.97305091]
[1643343624662,194.6,92.08,91.979,2.97305091]
[1643343624956,0.3126321,92.112,91.931,2.97305091]
[1643343624957,2.95669142,92.057,91.931,2.97305091]
[1643343625157,31.8903,92.05,91.919,2.97305091]
[1643343625360,194.6,92.01,91.92,46.70949272]
[1643343625558,194.6,91.99,91.92,46.70949272]
[1643343625758,194.6,91.97,91.856,519.19058338]
[1643343625960,15.57,91.96,91.856,519.19058338]
[1643343626160,194.6,91.94,91.817,2.97305091]
[1643343626362,16.3395,91.92,91.803,2.01609956]
[1643343626558,15.57,91.91,91.799,2.01609956]
[1643343626762,15.57,91.91,91.805,108.2]
[1643343626958,0.25,91.909,91.805,108.2]
[1643343627163,15.57,91.91,91.815,6.0]
[1643343627358,15.57,91.91,91.815,5.0]
[1643343627558,0.25,91.909,91.815,5.0]
[1643343627958,15.57,91.91,91.815,5.0]
[1643343628159,15.57,91.91,91.816,108.2]
[1643343628759,15.57,91.91,91.817,0.25]
[1643343629362,6.0,91.93,91.826,6.0]
[1643343629363,21.57,91.93,91.826,6.0]
[1643343629560,21.57,91.93,91.827,108.2]
[1643343629760,31.9053,91.95,91.827,108.45]
[1643343630060,15.57,91.99,91.84,15.57]
[1643343630260,15.57,91.99,91.841,108.45]
[1643343630460,15.57,91.99,91.85,6.0]
[1643343630661,16.3299,91.98,91.86,15.57]
[1643343630862,20.67411944,91.993,91.861,0.25]
[1643343631060,23.8724,92.004,91.871,108.2]
[1643343631260,15.57,92.05,91.88,15.57]
[1643343631463,15.57,92.05,91.881,6.0]
[1643343631663,15.15713026,92.046,91.891,108.2]
[1643343631863,18.11382168,92.046,91.9,15.57]
[1643343632060,12.69501889,92.045,91.91,6.0]
[1643343632263,31.95802722,92.045,91.911,0.25]
[1643343632560,16.3193,92.04,91.912,108.2]
[1643343632761,0.25,92.039,91.913,0.25]
[1643343632964,19.26300833,92.039,91.913,0.25]
[1643343633161,19.01300833,92.038,91.913,0.25]
[1643343633364,6.0,92.029,91.923,108.2]
[1643343633562,6.0,92.029,91.924,35.34095615]
[1643343633764,19.26300833,92.028,91.925,0.25]
[1643343634164,19.01300833,92.027,91.925,0.25]
[1643343636365,0.25,92.026,91.925,0.25]
[1643343637568,19.01300833,92.027,91.925,0.25]
[1643343637768,12.69501889,92.049,91.93,13.09]
[1643343637978,18.87289721,92.056,91.934,6.0]
[1643343638174,16.3155,92.07,91.94,6.0]
[1643343638375,16.3155,92.07,91.951,108.2]
[1643343638575,16.3155,92.07,91.962,108.2]
[1643343638776,16.3155,92.07,91.963,0.25]
[1643343638975,16.3155,92.07,91.972,6.0]
[1643343639391,0.25,92.069,91.973,0.25]
[1643343639594,0.25,92.069,91.974,108.2]
[1643343639791,0.25,92.069,91.975,0.25]
[1643343640993,6.0,92.06,91.974,0.25]
[1643343641193,5.66412281,92.059,91.974,0.25]
[1643343641394,5.91412281,92.059,91.971,0.25]
[1643343641893,0.25,92.059,91.971,0.25]
[1643343643194,16.317,92.05,91.963,46.77601405]
[1643343643394,0.25,92.049,91.963,46.77601405]
[1643343643694,1.59786553,92.048,91.963,46.77601405]
[1643343643898,0.25,92.047,91.963,46.77601405]
[1643343644094,19.12289721,92.047,91.963,46.77601405]
[1643343644295,16.3201,92.03,91.963,46.77601405]
[1643343644697,0.25,92.029,91.963,46.77601405]
[1643343645697,0.25,92.045,91.964,0.25]
[1643343647900,0.25,92.045,91.963,46.77601405]
[1643343648099,6.0,92.036,91.963,46.77601405]
[1643343648302,0.25,92.035,91.963,46.77601405]
[1643343649701,16.3188,92.04,91.963,46.77601405]
[1643343649702,0.25,92.039,91.963,46.77601405]